[Event "44th Chess Olympiad Open 2022"]
[Site "Chennai"]
[Date "2022.08.02"]
[Round "5.42"]
[White "Al Hosani, Omran"]
[Black "Markov, Mikhail"]
[Result "0-1"]
[WhiteElo "2215"]
[BlackElo "2333"]
[Annotator "RC"]
[PlyCount "88"]
[EventDate "2022.??.??"]
[TimeControl "60"]

1. d4 {[%emt 0:00:04]} d5 {[%emt 0:00:33]} 2. c4 {[%emt 0:00:13]} c6 {[%emt 0:
00:00]} 3. Nc3 {[%emt 0:00:11]} dxc4 {[%emt 0:01:39]} 4. a4 {[%emt 0:00:38]}
Nf6 {[%emt 0:05:50]} 5. e3 {[%emt 0:00:38]} Bg4 {[%emt 0:10:18]} 6. Nf3 {
[%emt 0:04:39]} e5 {[%emt 0:01:57]} 7. dxe5 {[%emt 0:13:09]} Qxd1+ {[%emt 0:00:
00]} 8. Nxd1 {[%emt 0:00:09]} Nfd7 {[%emt 0:01:13]} 9. Bxc4 {[%emt 0:00:28]}
Bb4+ {[%emt 0:01:54]} 10. Bd2 {[%emt 0:00:43]} Bxd2+ {[%emt 0:00:07]} 11. Kxd2
{[%emt 0:02:08]} Ke7 {[%emt 0:07:49]} 12. Nc3 {[%emt 0:02:57]} Rd8 {[%emt 0:00:
00]} 13. Kc2 {[%emt 0:00:21]} Bxf3 {[%emt 0:00:10]} 14. gxf3 {[%emt 0:00:07]}
Nxe5 {[%emt 0:00:03]} 15. Be2 {[%emt 0:00:13]} Na6 {[%emt 0:00:20]} 16. f4 {
[%emt 0:06:42]} Nd3 {[%emt 0:03:40]} 17. Bxd3 {[%emt 0:07:52]} Nb4+ {[%emt 0:
00:00]} 18. Kd2 {[%emt 0:00:07]} Nxd3 {[%emt 0:02:50]} 19. Ke2 {[%emt 0:00:10]}
Rd7 {[%emt 0:06:01]} 20. Rab1 {[%emt 0:02:39]} a5 {[%emt 0:01:12]} 21. Rhg1 {
[%emt 0:00:06]} g6 {[%emt 0:00:56]} 22. Rgd1 {[%emt 0:05:30]} Rad8 {[%emt 0:00:
00]} 23. Na2 {[%emt 0:09:53]} h6 {[%emt 0:26:05]} 24. b3 {[%emt 0:04:10]} Nxf2
{[%emt 0:01:30]} 25. Rxd7+ {[%emt 0:00:53]} Rxd7 {[%emt 0:00:06]} 26. b4 {
[%emt 0:02:32]} Ne4 {[%emt 0:02:25]} 27. Rb2 {[%emt 0:00:46]} axb4 {[%emt 0:00:
00]} 28. Rxb4 {[%emt 0:00:34]} f5 {[%emt 0:04:56]} 29. Rb2 {[%emt 0:00:02]} g5
{[%emt 0:00:08]} 30. Rc2 {[%emt 0:00:13]} g4 {[%emt 0:01:00]} 31. Nb4 {[%emt 0:
00:00]} h5 {[%emt 0:01:19]} 32. a5 {[%emt 0:00:10]} c5 {[%emt 0:02:01]} 33. Nd3
{[%emt 0:00:08]} h4 {[%emt 0:00:21]} 34. Ne5 {[%emt 0:00:32]} Rc7 {[%emt 0:00:
00]} 35. Kd3 {[%emt 0:00:51]} Ke6 {[%emt 0:02:33]} 36. Rb2 {[%emt 0:00:55]} h3
{[%emt 0:03:41]} 37. Rb6+ {[%emt 0:03:59]} Kd5 {[%emt 0:00:30]} 38. Rh6 {
[%emt 0:00:37]} c4+ {[%emt 0:01:07]} 39. Kc2 {[%emt 0:00:07]} Nf2 {[%emt 0:00:
00]} 40. Rf6 {[%emt 0:01:27]} g3 {[%emt 0:03:04]} 41. Rxf5 {[%emt 0:30:24]} Ke4
{[%emt 0:30:52]} 42. Rh5 {[%emt 0:00:50]} gxh2 {[%emt 0:00:29]} 43. Ng4 {
[%emt 0:00:11]} Nxg4 {[%emt 0:00:11]} 44. Rxh3 {[%emt 0:00:07]} Rc6 {[%emt 0:
00:00]} 0-1

[Event "44th Chess Olympiad Open 2022"]
[Site "Chennai"]
[Date "2022.08.02"]
[Round "5.42"]
[White "Mohamed Saeed Laily"]
[Black "Zhakshylykov, Erzhan"]
[Result "0-1"]
[WhiteElo "2030"]
[BlackElo "2332"]
[Annotator "RC"]
[PlyCount "78"]
[EventDate "2022.??.??"]
[TimeControl "60"]

1. d4 {[%emt 0:00:02]} Nf6 {[%emt 0:00:12]} 2. c4 {[%emt 0:00:04]} e6 {[%emt 0:
00:00]} 3. Nf3 {[%emt 0:00:10]} d5 {[%emt 0:02:19]} 4. g3 {[%emt 0:00:14]} Be7
{[%emt 0:00:29]} 5. Bg2 {[%emt 0:00:07]} O-O {[%emt 0:00:09]} 6. Qc2 {[%emt 0:
00:00]} Nc6 {[%emt 0:09:57]} 7. O-O {[%emt 0:03:02]} Nb4 {[%emt 0:03:37]} 8.
Qb3 {[%emt 0:06:30]} dxc4 {[%emt 0:01:02]} 9. Qxc4 {[%emt 0:00:28]} b5 {
[%emt 0:11:40]} 10. Qb3 {[%emt 0:02:15]} Rb8 {[%emt 0:00:17]} 11. Nc3 {[%emt 0:
00:00]} Bb7 {[%emt 0:02:30]} 12. Bg5 {[%emt 0:32:13]} a5 {[%emt 0:39:10]} 13.
a3 {[%emt 0:15:45]} a4 {[%emt 0:00:21]} 14. Qd1 {[%emt 0:00:18]} Nbd5 {[%emt 0:
00:00]} 15. Qc2 {[%emt 0:02:06]} Nxc3 {[%emt 0:01:04]} 16. bxc3 {[%emt 0:02:40]
} Be4 {[%emt 0:00:33]} 17. Qc1 {[%emt 0:02:11]} Qd5 {[%emt 0:02:43]} 18. Ne1 {
[%emt 0:02:56]} Bxg2 {[%emt 0:00:59]} 19. Nxg2 {[%emt 0:00:01]} c5 {[%emt 0:00:
00]} 20. Bf4 {[%emt 0:04:02]} Rb7 {[%emt 0:03:35]} 21. Rd1 {[%emt 0:03:39]} Rc8
{[%emt 0:00:22]} 22. Qb2 {[%emt 0:02:52]} Qb3 {[%emt 0:02:41]} 23. Qxb3 {
[%emt 0:08:37]} axb3 {[%emt 0:00:05]} 24. dxc5 {[%emt 0:00:03]} Ne4 {[%emt 0:
00:00]} 25. Rdb1 {[%emt 0:00:56]} Nxc3 {[%emt 0:03:54]} 26. Rxb3 {[%emt 0:00:
00]} Nxe2+ {[%emt 0:00:21]} 27. Kf1 {[%emt 0:00:06]} Nxf4 {[%emt 0:01:24]} 28.
Nxf4 {[%emt 0:00:01]} Rxc5 {[%emt 0:00:13]} 29. Rab1 {[%emt 0:00:52]} g5 {
[%emt 0:00:41]} 30. Ne2 {[%emt 0:00:39]} Rc2 {[%emt 0:02:13]} 31. Rxb5 {
[%emt 0:03:46]} Rd7 {[%emt 0:00:15]} 32. Rb7 {[%emt 0:02:00]} Rdd2 {[%emt 0:00:
00]} 33. Rxe7 {[%emt 0:00:22]} Rxe2 {[%emt 0:00:05]} 34. Rb8+ {[%emt 0:00:18]}
Kg7 {[%emt 0:00:05]} 35. Rbb7 {[%emt 0:00:35]} Rxf2+ {[%emt 0:00:05]} 36. Ke1 {
[%emt 0:00:10]} Kg6 {[%emt 0:00:14]} 37. Rec7 {[%emt 0:01:11]} Rce2+ {[%emt 0:
00:00]} 38. Kd1 {[%emt 0:00:10]} Ra2 {[%emt 0:00:08]} 39. Ke1 {[%emt 0:00:41]}
Rxh2 {[%emt 0:00:16]} 0-1

[Event "44th Chess Olympiad Open 2022"]
[Site "Chennai"]
[Date "2022.08.02"]
[Round "5.43"]
[White "Zambrana, Osvaldo"]
[Black "Thing, Bibek"]
[Result "1-0"]
[WhiteElo "2417"]
[BlackElo "2260"]
[Annotator "RC"]
[PlyCount "51"]
[EventDate "2022.??.??"]
[TimeControl "60"]

1. e4 {[%emt 0:00:06]} c5 {[%emt 0:00:18]} 2. Nf3 {[%emt 0:00:09]} d6 {[%emt 0:
00:00]} 3. d4 {[%emt 0:00:06]} cxd4 {[%emt 0:00:03]} 4. Nxd4 {[%emt 0:00:07]}
Nf6 {[%emt 0:00:05]} 5. Nc3 {[%emt 0:00:11]} a6 {[%emt 0:00:03]} 6. Bg5 {
[%emt 0:00:07]} e6 {[%emt 0:02:38]} 7. f4 {[%emt 0:00:08]} Be7 {[%emt 0:00:26]}
8. Qe2 {[%emt 0:00:45]} Nc6 {[%emt 0:04:03]} 9. O-O-O {[%emt 0:02:53]} Nxd4 {
[%emt 0:02:15]} 10. Rxd4 {[%emt 0:00:06]} Qa5 {[%emt 0:09:13]} 11. Kb1 {
[%emt 0:15:01]} h6 {[%emt 0:11:20]} 12. Bh4 {[%emt 0:00:32]} g5 {[%emt 0:16:02]
} 13. Be1 {[%emt 0:12:42]} Qb6 {[%emt 0:01:19]} 14. Bf2 {[%emt 0:00:07]} Qa5 {
[%emt 0:06:29]} 15. g3 {[%emt 0:16:54]} e5 {[%emt 0:03:44]} 16. Rd5 {[%emt 0:
00:00]} Qc7 {[%emt 0:03:43]} 17. Rd2 {[%emt 0:05:19]} Bd7 {[%emt 0:07:51]} 18.
Bg2 {[%emt 0:02:26]} Rc8 {[%emt 0:06:44]} 19. Re1 {[%emt 0:09:27]} Qc4 {
[%emt 0:01:46]} 20. Qd1 {[%emt 0:00:13]} Qb4 {[%emt 0:13:33]} 21. a3 {[%emt 0:
00:00]} Qa5 {[%emt 0:02:48]} 22. Nd5 {[%emt 0:00:02]} Nxd5 {[%emt 0:00:36]} 23.
exd5 {[%emt 0:00:02]} f6 {[%emt 0:00:28]} 24. Qh5+ {[%emt 0:02:55]} Kd8 {
[%emt 0:00:56]} 25. Rd3 {[%emt 0:00:25]} Qa4 {[%emt 0:01:09]} 26. Bb6+ {
[%emt 0:00:16]} 1-0

[Event "44th Chess Olympiad Open 2022"]
[Site "Chennai"]
[Date "2022.08.02"]
[Round "5.43"]
[White "Bolanos, Fernando"]
[Black "Jaiswal, Rupesh"]
[Result "1-0"]
[WhiteElo "2258"]
[BlackElo "2083"]
[Annotator "NA RC"]
[PlyCount "53"]
[EventDate "2022.??.??"]
[TimeControl "60"]

1. e4 {[%emt 0:00:02]} c5 {[%emt 0:00:12]} 2. Nf3 {[%emt 0:00:21]} d6 {[%emt 0:
00:00]} 3. d4 {[%emt 0:00:28]} cxd4 {[%emt 0:00:02]} 4. Nxd4 {[%emt 0:00:07]}
Nf6 {[%emt 0:00:03]} 5. Nc3 {[%emt 0:00:53]} a6 {[%emt 0:00:07]} 6. Be3 {
[%emt 0:00:54]} e5 {[%emt 0:00:37]} 7. Nb3 {[%emt 0:03:40]} Be7 {[%emt 0:00:06]
} 8. Be2 {[%emt 0:00:03]} Nc6 {[%emt 0:03:47]} 9. g4 {[%emt 0:02:42]} Be6 {
[%emt 0:00:49]} 10. g5 {[%emt 0:04:52]} Nd7 {[%emt 0:00:14]} 11. Rg1 {[%emt 0:
00:00]} Nb6 {[%emt 0:24:02]} 12. Nd5 {[%emt 0:02:41]} Na4 {[%emt 0:04:50]} 13.
Qd2 {[%emt 0:04:44]} O-O {[%emt 0:04:51]} 14. O-O-O {[%emt 0:00:25]} Bxd5 {
[%emt 0:02:32]} 15. exd5 {[%emt 0:01:17]} Nb8 {[%emt 0:01:07]} 16. h4 {[%emt 0:
00:00]} Nd7 {[%emt 0:02:31]} 17. h5 {[%emt 0:37:05]} g6 {[%emt 0:07:28]} 18.
Rh1 {[%emt 0:03:22]} Re8 {[%emt 0:11:07]} 19. hxg6 {[%emt 0:03:40]} fxg6 {
[%emt 0:01:07]} 20. Qb4 {[%emt 0:01:54]} b5 {[%emt 0:03:17]} 21. Qh4 {[%emt 0:
00:00]} Nf8 {[%emt 0:00:38]} 22. Bg4 {[%emt 0:00:30]} Qc7 {[%emt 0:05:01]} 23.
Nd4 {[%emt 0:07:39]} Bxg5 {[%emt 0:06:37]} 24. Qxg5 {[%emt 0:01:40]} exd4 {
[%emt 0:00:06]} 25. Bxd4 {[%emt 0:00:16]} Nc5 {[%emt 0:01:11]} 26. Qf6 {
[%emt 0:01:32]} Re7 {[%emt 0:06:05]} 27. Bxc5 {[%emt 0:01:44]} 1-0

[Event "44th Chess Olympiad Open 2022"]
[Site "Chennai"]
[Date "2022.08.02"]
[Round "5.43"]
[White "Lama, Milan"]
[Black "Pinto, Daniel"]
[Result "1/2-1/2"]
[WhiteElo "2024"]
[BlackElo "2249"]
[Annotator "NA RC"]
[PlyCount "73"]
[EventDate "2022.??.??"]
[TimeControl "60"]

1. e4 {[%emt 0:00:10]} e5 {[%emt 0:00:10]} 2. Nf3 {[%emt 0:00:31]} Nc6 {
[%emt 0:00:11]} 3. Bb5 {[%emt 0:01:15]} a6 {[%emt 0:02:15]} 4. Bxc6 {[%emt 0:
00:00]} dxc6 {[%emt 0:00:06]} 5. O-O {[%emt 0:00:06]} f6 {[%emt 0:09:15]} 6. d4
{[%emt 0:01:12]} exd4 {[%emt 0:00:12]} 7. Nxd4 {[%emt 0:00:06]} c5 {[%emt 0:00:
00]} 8. Nb3 {[%emt 0:01:21]} Qxd1 {[%emt 0:01:03]} 9. Rxd1 {[%emt 0:00:08]} Bd7
{[%emt 0:00:53]} 10. Nc3 {[%emt 0:09:05]} Bd6 {[%emt 0:20:30]} 11. Na5 {
[%emt 0:20:23]} O-O-O {[%emt 0:20:04]} 12. Nc4 {[%emt 0:06:00]} Be7 {[%emt 0:
00:00]} 13. Bf4 {[%emt 0:12:15]} Be6 {[%emt 0:15:09]} 14. Nd5 {[%emt 0:15:00]}
Bxd5 {[%emt 0:01:22]} 15. exd5 {[%emt 0:06:41]} g5 {[%emt 0:02:55]} 16. Bg3 {
[%emt 0:01:32]} b5 {[%emt 0:01:58]} 17. Na5 {[%emt 0:02:06]} f5 {[%emt 0:00:34]
} 18. Be5 {[%emt 0:04:16]} Bf6 {[%emt 0:00:05]} 19. Nc6 {[%emt 0:05:26]} Bxe5 {
[%emt 0:01:41]} 20. Nxe5 {[%emt 0:00:06]} Nh6 {[%emt 0:00:03]} 21. a4 {[%emt 0:
00:00]} b4 {[%emt 0:02:24]} 22. c4 {[%emt 0:01:25]} bxc3 {[%emt 0:05:22]} 23.
bxc3 {[%emt 0:00:17]} Rde8 {[%emt 0:01:36]} 24. Re1 {[%emt 0:03:57]} f4 {
[%emt 0:02:28]} 25. Nd3 {[%emt 0:01:24]} c4 {[%emt 0:00:13]} 26. Nb2 {[%emt 0:
00:00]} Rxe1+ {[%emt 0:02:21]} 27. Rxe1 {[%emt 0:00:04]} Rd8 {[%emt 0:00:08]}
28. Rd1 {[%emt 0:01:48]} Re8 {[%emt 0:03:19]} 29. Kf1 {[%emt 0:00:18]} Ng4 {
[%emt 0:00:39]} 30. h3 {[%emt 0:01:07]} Ne5 {[%emt 0:00:01]} 31. Re1 {[%emt 0:
00:00]} Kd7 {[%emt 0:00:16]} 32. Re4 {[%emt 0:02:23]} Kd6 {[%emt 0:01:15]} 33.
Nxc4+ {[%emt 0:00:20]} Kxd5 {[%emt 0:00:05]} 34. Rd4+ {[%emt 0:01:19]} Kc6 {
[%emt 0:00:09]} 35. Re4 {[%emt 0:00:28]} Kd5 {[%emt 0:00:07]} 36. Rd4+ {
[%emt 0:00:29]} Kc6 {[%emt 0:00:07]} 37. Re4 {[%emt 0:00:30]} 1/2-1/2

[Event "44th Chess Olympiad Open 2022"]
[Site "Chennai"]
[Date "2022.08.02"]
[Round "5.43"]
[White "Chaulagain, Purushottam"]
[Black "Gemy, Jose Daniel"]
[Result "0-1"]
[WhiteElo "1975"]
[BlackElo "2373"]
[Annotator "RC"]
[PlyCount "160"]
[EventDate "2022.??.??"]
[TimeControl "60"]

1. d4 {[%emt 0:00:11]} Nf6 {[%emt 0:00:04]} 2. Nc3 {[%emt 0:00:09]} d5 {
[%emt 0:01:46]} 3. Bf4 {[%emt 0:00:06]} e6 {[%emt 0:00:47]} 4. e3 {[%emt 0:00:
00]} Bd6 {[%emt 0:04:39]} 5. Qf3 {[%emt 0:00:43]} a6 {[%emt 0:03:55]} 6. Bd3 {
[%emt 0:00:46]} Nc6 {[%emt 0:03:03]} 7. Bxd6 {[%emt 0:15:31]} Qxd6 {[%emt 0:00:
00]} 8. Qg3 {[%emt 0:02:30]} e5 {[%emt 0:04:28]} 9. dxe5 {[%emt 0:03:28]} Nxe5
{[%emt 0:00:06]} 10. O-O-O {[%emt 0:02:30]} Nxd3+ {[%emt 0:24:44]} 11. Rxd3 {
[%emt 0:00:56]} Qxg3 {[%emt 0:00:04]} 12. hxg3 {[%emt 0:00:25]} Bf5 {[%emt 0:
00:00]} 13. Rd4 {[%emt 0:19:25]} O-O-O {[%emt 0:03:09]} 14. Nf3 {[%emt 0:04:18]
} Rhe8 {[%emt 0:00:29]} 15. Rhd1 {[%emt 0:03:25]} c6 {[%emt 0:03:57]} 16. Rf4 {
[%emt 0:04:17]} Bg4 {[%emt 0:03:03]} 17. Rd2 {[%emt 0:04:40]} Kc7 {[%emt 0:00:
00]} 18. Nh2 {[%emt 0:02:39]} Bc8 {[%emt 0:01:13]} 19. Nf3 {[%emt 0:00:55]} Re7
{[%emt 0:01:14]} 20. Nd4 {[%emt 0:03:17]} Re5 {[%emt 0:07:14]} 21. Nde2 {
[%emt 0:04:08]} Rde8 {[%emt 0:01:11]} 22. Ng1 {[%emt 0:01:10]} R5e7 {[%emt 0:
00:00]} 23. Nf3 {[%emt 0:02:23]} Ng4 {[%emt 0:00:52]} 24. a4 {[%emt 0:06:03]}
a5 {[%emt 0:02:22]} 25. b4 {[%emt 0:01:48]} axb4 {[%emt 0:01:20]} 26. Rxb4 {
[%emt 0:00:14]} Bd7 {[%emt 0:05:40]} 27. Nd4 {[%emt 0:05:38]} Nf6 {[%emt 0:00:
00]} 28. Nb3 {[%emt 0:00:37]} b6 {[%emt 0:01:51]} 29. a5 {[%emt 0:00:57]} b5 {
[%emt 0:00:34]} 30. Kb2 {[%emt 0:03:55]} Bf5 {[%emt 0:04:14]} 31. Rd1 {[%emt 0:
00:00]} Be4 {[%emt 0:01:16]} 32. Rg1 {[%emt 0:02:40]} Kd6 {[%emt 0:00:21]} 33.
g4 {[%emt 0:01:37]} h6 {[%emt 0:01:10]} 34. Nd2 {[%emt 0:01:47]} Bh7 {[%emt 0:
00:00]} 35. Rd1 {[%emt 0:00:31]} Ra8 {[%emt 0:00:55]} 36. e4 {[%emt 0:01:02]}
Rxa5 {[%emt 0:01:22]} 37. exd5 {[%emt 0:00:13]} cxd5 {[%emt 0:01:57]} 38. Nb3 {
[%emt 0:00:50]} Ra8 {[%emt 0:00:20]} 39. Nxb5+ {[%emt 0:00:46]} Kd7 {[%emt 0:
00:00]} 40. Rd2 {[%emt 0:01:42]} Ke8 {[%emt 0:00:54]} 41. Nd6+ {[%emt 0:30:38]}
Kf8 {[%emt 0:30:10]} 42. f3 {[%emt 0:00:00]} Rea7 {[%emt 0:00:00]} 43. Rb7 {
[%emt 0:00:00]} Ra2+ {[%emt 0:00:00]} 44. Kb1 {[%emt 0:00:00]} Bg6 {[%emt 0:00:
00]} 45. Nf5 {[%emt 0:00:00]} Bxf5 {[%emt 0:00:00]} 46. gxf5 {[%emt 0:00:00]}
h5 {[%emt 0:00:00]} 47. Re2 {[%emt 0:00:00]} R2a7 {[%emt 0:00:00]} 48. Rxa7 {
[%emt 0:00:00]} Rxa7 {[%emt 0:00:00]} 49. c3 {[%emt 0:00:00]} Kg8 {[%emt 0:00:
00]} 50. Re5 {[%emt 0:00:00]} Kh7 {[%emt 0:01:15]} 51. Nd4 {[%emt 0:00:00]} Kh6
{[%emt 0:00:00]} 52. g3 {[%emt 0:00:00]} Kg5 {[%emt 0:00:00]} 53. Ne2 {[%emt 0:
00:00]} Ra4 {[%emt 0:00:00]} 54. Ng1 {[%emt 0:00:00]} h4 {[%emt 0:00:00]} 55.
Nh3+ {[%emt 0:00:00]} Kh5 {[%emt 0:00:00]} 56. g4+ {[%emt 0:00:00]} Nxg4 {
[%emt 0:00:00]} 57. fxg4+ {[%emt 0:00:00]} Kxg4 {[%emt 0:00:00]} 58. Nf2+ {
[%emt 0:02:26]} Kf3 {[%emt 0:00:00]} 59. Nd3 {[%emt 0:01:54]} h3 {[%emt 0:00:
00]} 60. Ne1+ {[%emt 0:01:53]} Kg4 {[%emt 0:00:00]} 61. f6 {[%emt 0:01:58]} g6
{[%emt 0:00:00]} 62. Nd3 {[%emt 0:00:14]} h2 {[%emt 0:00:00]} 63. Re1 {[%emt 0:
00:00]} Kg3 {[%emt 0:00:00]} 64. Re3+ {[%emt 0:01:34]} Kh4 {[%emt 0:00:00]} 65.
Re1 {[%emt 0:00:43]} Rg4 {[%emt 0:00:00]} 66. Ne5 {[%emt 0:00:10]} Re4 {
[%emt 0:00:00]} 67. Nf3+ {[%emt 0:00:59]} Kg3 {[%emt 0:00:00]} 68. Rf1 {
[%emt 0:00:42]} Re3 {[%emt 0:00:00]} 69. Ng5 {[%emt 0:01:23]} Kg2 {[%emt 0:00:
00]} 70. Rd1 {[%emt 0:00:23]} h1=Q {[%emt 0:00:20]} 71. Rxh1 {[%emt 0:00:07]}
Kxh1 {[%emt 0:00:00]} 72. Kc2 {[%emt 0:00:12]} Kg2 {[%emt 0:00:00]} 73. Kd2 {
[%emt 0:01:02]} Rf3 {[%emt 0:00:00]} 74. Nxf7 {[%emt 0:00:31]} Rxf6 {[%emt 0:
00:00]} 75. Ne5 {[%emt 0:00:14]} g5 {[%emt 0:01:31]} 76. Kd3 {[%emt 0:00:38]}
Rf4 {[%emt 0:00:46]} 77. Nd7 {[%emt 0:00:57]} g4 {[%emt 0:00:10]} 78. Nb6 {
[%emt 0:00:15]} Kf2 {[%emt 0:00:26]} 79. Nxd5 {[%emt 0:00:08]} Rf3+ {[%emt 0:
00:00]} 80. Ke4 {[%emt 0:01:04]} g3 {[%emt 0:00:09]} 0-1

[Event "44th Chess Olympiad Open 2022"]
[Site "Chennai"]
[Date "2022.08.02"]
[Round "5.44"]
[White "Saraci, Korab"]
[Black "Smith, Shreyas"]
[Result "0-1"]
[WhiteElo "2287"]
[BlackElo "2147"]
[Annotator "NA RC"]
[PlyCount "56"]
[EventDate "2022.??.??"]
[TimeControl "60"]

1. e4 {[%emt 0:00:04]} c5 {[%emt 0:00:12]} 2. c3 {[%emt 0:00:06]} e5 {[%emt 0:
00:00]} 3. Nf3 {[%emt 0:01:33]} Nc6 {[%emt 0:00:08]} 4. Bc4 {[%emt 0:00:47]}
Nf6 {[%emt 0:00:14]} 5. d3 {[%emt 0:04:06]} Be7 {[%emt 0:00:48]} 6. O-O {
[%emt 0:00:29]} O-O {[%emt 0:00:18]} 7. Re1 {[%emt 0:01:14]} d5 {[%emt 0:03:56]
} 8. exd5 {[%emt 0:00:30]} Nxd5 {[%emt 0:00:04]} 9. Nbd2 {[%emt 0:14:11]} Bg4 {
[%emt 0:07:23]} 10. Qa4 {[%emt 0:00:25]} Nf4 {[%emt 0:04:35]} 11. g3 {[%emt 0:
00:00]} Nh3+ {[%emt 0:16:24]} 12. Kg2 {[%emt 0:01:08]} Bd7 {[%emt 0:06:23]} 13.
Qc2 {[%emt 0:01:40]} Qb8 {[%emt 0:03:21]} 14. Ne4 {[%emt 0:08:05]} Kh8 {
[%emt 0:00:39]} 15. Neg5 {[%emt 0:06:11]} Nxg5 {[%emt 0:00:50]} 16. Nxg5 {
[%emt 0:01:40]} Bxg5 {[%emt 0:00:23]} 17. Bxg5 {[%emt 0:00:04]} f5 {[%emt 0:00:
00]} 18. Be3 {[%emt 0:02:48]} Qd6 {[%emt 0:02:22]} 19. f4 {[%emt 0:01:29]} g5 {
[%emt 0:02:14]} 20. Qf2 {[%emt 0:03:58]} b6 {[%emt 0:00:12]} 21. fxe5 {[%emt 0:
00:00]} Nxe5 {[%emt 0:03:42]} 22. Bxg5 {[%emt 0:00:16]} Qc6+ {[%emt 0:10:29]}
23. Kf1 {[%emt 0:01:19]} f4 {[%emt 0:02:28]} 24. Bxf4 {[%emt 0:06:43]} Bh3+ {
[%emt 0:07:32]} 25. Ke2 {[%emt 0:00:06]} Nxc4 {[%emt 0:00:40]} 26. dxc4 {
[%emt 0:00:12]} Rad8 {[%emt 0:00:13]} 27. Rf1 {[%emt 0:12:46]} Bg4+ {[%emt 0:
00:00]} 28. Ke1 {[%emt 0:00:06]} Qe4+ {[%emt 0:00:10]} 0-1

[Event "44th Chess Olympiad Open 2022"]
[Site "Chennai"]
[Date "2022.08.02"]
[Round "5.44"]
[White "Christie, Joshua"]
[Black "Saraci, Nderim"]
[Result "0-1"]
[WhiteElo "2272"]
[BlackElo "2495"]
[Annotator "RC"]
[PlyCount "118"]
[EventDate "2022.??.??"]
[TimeControl "60"]

1. d4 {[%emt 0:00:30]} Nf6 {[%emt 0:00:17]} 2. c4 {[%emt 0:00:19]} e6 {[%emt 0:
00:00]} 3. g3 {[%emt 0:00:23]} c5 {[%emt 0:01:34]} 4. d5 {[%emt 0:01:22]} exd5
{[%emt 0:02:05]} 5. cxd5 {[%emt 0:00:16]} d6 {[%emt 0:00:08]} 6. Nc3 {[%emt 0:
00:00]} g6 {[%emt 0:00:11]} 7. Bg2 {[%emt 0:01:01]} Bg7 {[%emt 0:00:13]} 8. Nf3
{[%emt 0:01:10]} O-O {[%emt 0:00:18]} 9. Nd2 {[%emt 0:02:53]} Nbd7 {[%emt 0:00:
00]} 10. O-O {[%emt 0:01:24]} Re8 {[%emt 0:04:49]} 11. e4 {[%emt 0:08:07]} a6 {
[%emt 0:11:05]} 12. Nc4 {[%emt 0:08:59]} Nb6 {[%emt 0:22:56]} 13. Ne3 {[%emt 0:
00:00]} Nbd7 {[%emt 0:03:58]} 14. Nc4 {[%emt 0:02:40]} Ne5 {[%emt 0:03:35]} 15.
Nxe5 {[%emt 0:03:11]} Rxe5 {[%emt 0:00:10]} 16. a4 {[%emt 0:01:37]} Re8 {
[%emt 0:00:48]} 17. h3 {[%emt 0:09:39]} Nd7 {[%emt 0:02:23]} 18. f4 {[%emt 0:
00:00]} f5 {[%emt 0:08:31]} 19. Re1 {[%emt 0:06:49]} fxe4 {[%emt 0:11:32]} 20.
Nxe4 {[%emt 0:02:43]} Nf8 {[%emt 0:00:19]} 21. g4 {[%emt 0:08:07]} h5 {[%emt 0:
00:00]} 22. gxh5 {[%emt 0:00:50]} Bf5 {[%emt 0:02:40]} 23. Qf3 {[%emt 0:07:06]}
Qh4 {[%emt 0:00:39]} 24. Bd2 {[%emt 0:01:55]} Bxe4 {[%emt 0:04:15]} 25. Rxe4 {
[%emt 0:00:18]} Qxh5 {[%emt 0:01:21]} 26. Qxh5 {[%emt 0:03:26]} gxh5 {[%emt 0:
00:00]} 27. Bc3 {[%emt 0:00:23]} Rxe4 {[%emt 0:00:10]} 28. Bxe4 {[%emt 0:00:01]
} Re8 {[%emt 0:00:14]} 29. Re1 {[%emt 0:00:22]} Bxc3 {[%emt 0:03:23]} 30. bxc3
{[%emt 0:00:01]} Ng6 {[%emt 0:02:04]} 31. f5 {[%emt 0:11:14]} Nf4 {[%emt 0:00:
00]} 32. h4 {[%emt 0:00:36]} b5 {[%emt 0:05:21]} 33. axb5 {[%emt 0:03:22]} axb5
{[%emt 0:00:04]} 34. Kf2 {[%emt 0:02:46]} Kf8 {[%emt 0:00:30]} 35. Re3 {
[%emt 0:01:28]} Re5 {[%emt 0:00:26]} 36. Kf3 {[%emt 0:01:04]} Nxd5 {[%emt 0:00:
00]} 37. Rd3 {[%emt 0:00:56]} Nf6 {[%emt 0:00:20]} 38. Bc6 {[%emt 0:00:01]}
Rxf5+ {[%emt 0:00:21]} 39. Kg2 {[%emt 0:00:57]} Ke7 {[%emt 0:02:26]} 40. Bxb5 {
[%emt 0:00:15]} Rf4 {[%emt 0:01:14]} 41. Kg3 {[%emt 0:01:28]} Rg4+ {[%emt 0:00:
00]} 42. Kh3 {[%emt 0:03:07]} d5 {[%emt 0:02:06]} 43. Rf3 {[%emt 0:01:37]} Rg1
{[%emt 0:00:42]} 44. Re3+ {[%emt 0:04:32]} Kd6 {[%emt 0:00:23]} 45. Be2 {
[%emt 0:00:37]} Rh1+ {[%emt 0:00:28]} 46. Kg3 {[%emt 0:01:07]} Ne4+ {[%emt 0:
00:00]} 47. Kf4 {[%emt 0:00:19]} Rxh4+ {[%emt 0:00:21]} 48. Kf5 {[%emt 0:00:04]
} Rh2 {[%emt 0:02:43]} 49. Bf3 {[%emt 0:01:48]} Rf2 {[%emt 0:00:41]} 50. Kg6 {
[%emt 0:01:32]} h4 {[%emt 0:03:19]} 51. Bxe4 {[%emt 0:03:40]} dxe4 {[%emt 0:00:
00]} 52. Rxe4 {[%emt 0:00:04]} h3 {[%emt 0:00:16]} 53. c4 {[%emt 0:01:27]} h2 {
[%emt 0:00:21]} 54. Rh4 {[%emt 0:00:16]} Ke5 {[%emt 0:01:09]} 55. Kg5 {[%emt 0:
00:00]} Rg2+ {[%emt 0:00:10]} 56. Kh6 {[%emt 0:00:47]} Kf5 {[%emt 0:00:21]} 57.
Rh5+ {[%emt 0:01:43]} Kf4 {[%emt 0:00:16]} 58. Rh4+ {[%emt 0:00:16]} Kf3 {
[%emt 0:00:17]} 59. Rh5 {[%emt 0:00:35]} Kf2 {[%emt 0:00:09]} 0-1